fUST/lending_fUST_20241204
["ID","MTS","AMOUNT","RATE_DAILY","PERIOD"]
[344233865,1733314233279,-500.0,0.000243,2]
[344233866,1733314233288,-158.21178086,0.000243,2]
[344233867,1733314233298,-500.0,0.00024378,2]
[344233868,1733314233308,-586.52671046,0.00024378,2]
[344233869,1733314233318,-1001.95284342,0.00024821,2]
[344233870,1733314233328,-1000.0,0.00024821,2]
[344233871,1733314233337,-183.29590742,0.00024821,2]
[344233872,1733314233350,-1099.3883589,0.00024848,2]
[344233873,1733314233362,-1000.0,0.00024848,2]
[344233874,1733314233372,-1205.17909637,0.000249,2]
[344233875,1733314233381,-335.79017932,0.00024999,2]
[344233876,1733314233391,-390.53882504,0.00024999,2]
[344233877,1733314233401,-500.0,0.00024999,2]
[344233878,1733314233410,-259.19830694,0.00024999,2]
[344233879,1733314233421,-500.0,0.00024999,2]
[344233880,1733314233431,-170.27776855,0.00024999,2]
[344233881,1733314233441,-500.0,0.00024999,2]
[344233882,1733314233451,-70041.69631119,0.00025,2]
[344233894,1733314238802,-182.342812,0.0002426,2]
[344233896,1733314238812,-500.0,0.00024262,2]
[344233898,1733314238821,-692.76779201,0.00024262,2]
[344233900,1733314238830,-500.0,0.00024262,2]
[344233902,1733314238840,-500.0,0.00024262,2]
[344233904,1733314238851,-692.76779201,0.00024262,2]
[344233906,1733314238861,-500.0,0.00024262,2]
[344233908,1733314238870,-500.0,0.00024262,2]
[344233910,1733314238880,-267.61291685,0.00024262,2]
[344233912,1733314238889,-500.0,0.00024262,2]
[344233914,1733314238899,-692.76779201,0.00024262,2]
[344233916,1733314238908,-500.0,0.00024262,2]
[344233919,1733314238917,-500.0,0.00024262,2]
[344233922,1733314238926,-692.76779201,0.00024262,2]
[344233924,1733314238936,-500.0,0.00024262,2]
[344233926,1733314238945,-500.0,0.00024262,2]
[344233928,1733314238955,-692.76779201,0.00024262,2]
[344233930,1733314238964,-500.0,0.00024262,2]
[344233932,1733314238973,-692.76779201,0.00024262,2]
[344233934,1733314238982,-500.0,0.00024262,2]
[344233936,1733314238991,-500.0,0.00024262,2]
[344233938,1733314239001,-692.76779201,0.00024262,2]
[344233940,1733314239010,-500.0,0.00024262,2]
[344233942,1733314239019,-500.0,0.00024262,2]
[344233944,1733314239028,-692.76779201,0.00024262,2]
[344233946,1733314239037,-500.0,0.00024262,2]
[344233948,1733314239046,-500.0,0.00024262,2]
[344233950,1733314239056,-692.76779201,0.00024262,2]
[344233952,1733314239065,-419.44268681,0.00024262,2]
[344233954,1733314239074,-500.0,0.00024262,2]
[344233956,1733314239084,-692.76779201,0.00024262,2]
[344233958,1733314239094,-500.0,0.00024262,2]
[344233960,1733314239105,-500.0,0.00024262,2]
[344233962,1733314239114,-692.76779201,0.00024262,2]
[344233964,1733314239124,-500.0,0.00024262,2]
[344233966,1733314239134,-692.76779201,0.00024262,2]
[344233968,1733314239144,-500.0,0.00024262,2]
[344233970,1733314239154,-692.76779201,0.00024262,2]
[344233972,1733314239163,-692.76779201,0.00024262,2]
[344233974,1733314239173,-500.0,0.00024262,2]
[344233976,1733314239182,-335.72263993,0.00024262,2]
[344233978,1733314239192,-692.76779201,0.00024262,2]
[344233980,1733314239201,-500.0,0.00024262,2]
[344233982,1733314239211,-692.76779201,0.00024262,2]
[344233984,1733314239220,-692.76779201,0.00024262,2]
[344233986,1733314239229,-500.0,0.00024262,2]
[344233988,1733314239239,-692.76779201,0.00024262,2]
[344233990,1733314239249,-500.0,0.00024262,2]
[344233992,1733314239258,-692.76779201,0.00024262,2]
[344233995,1733314239267,-692.76779201,0.00024262,2]
[344233996,1733314239276,-500.0,0.00024262,2]
[344233998,1733314239285,-692.76779201,0.00024262,2]
[344234000,1733314239294,-500.0,0.00024262,2]
[344234002,1733314239303,-500.0,0.00024262,2]
[344234004,1733314239312,-692.76779201,0.00024262,2]
[344234006,1733314239322,-500.0,0.00024262,2]
[344234008,1733314239332,-692.76779201,0.00024262,2]
[344234010,1733314239341,-500.0,0.00024262,2]
[344234013,1733314239353,-692.76779201,0.00024262,2]
[344234014,1733314239363,-500.0,0.00024262,2]
[344234016,1733314239372,-692.76779201,0.00024262,2]
[344234018,1733314239381,-500.0,0.00024262,2]
[344234020,1733314239391,-692.76779201,0.00024262,2]
[344234022,1733314239400,-500.0,0.00024262,2]
[344234024,1733314239410,-692.76779201,0.00024262,2]
[344234027,1733314239419,-500.0,0.00024262,2]
[344234029,1733314239429,-692.76779201,0.00024262,2]
[344234031,1733314239438,-692.76779201,0.00024262,2]
[344234033,1733314239447,-500.0,0.00024262,2]
[344234035,1733314239456,-692.76779201,0.00024262,2]
[344234037,1733314239465,-500.0,0.00024262,2]
[344234039,1733314239474,-692.76779201,0.00024262,2]
[344234041,1733314239483,-692.76779201,0.00024262,2]
[344234043,1733314239493,-500.0,0.00024262,2]
[344234044,1733314239502,-500.0,0.00024262,2]
[344234046,1733314239511,-692.76779201,0.00024262,2]
[344234048,1733314239521,-692.76779201,0.00024262,2]
[344234050,1733314239535,-692.76779201,0.00024262,2]
[344234053,1733314239546,-692.76779201,0.00024262,2]
[344234054,1733314239555,-692.76779201,0.00024262,2]
[344234056,1733314239566,-692.76779201,0.00024262,2]
[344234059,1733314239575,-692.76779201,0.00024262,2]
[344234061,1733314239585,-692.76779201,0.00024262,2]
[344234063,1733314239595,-692.76779201,0.00024262,2]
[344234065,1733314239606,-692.76779201,0.00024262,2]
[344234067,1733314239616,-692.76779201,0.00024262,2]
[344234069,1733314239626,-692.76779201,0.00024262,2]
[344234071,1733314239636,-692.76779201,0.00024262,2]
[344234073,1733314239646,-692.76779201,0.00024262,2]
[344234075,1733314239655,-692.76779201,0.00024262,2]
[344234077,1733314239666,-692.76779201,0.00024262,2]
[344234079,1733314239677,-692.76779201,0.00024262,2]
[344234081,1733314239690,-692.76779201,0.00024262,2]
[344234083,1733314239704,-692.76779201,0.00024262,2]
[344234085,1733314239715,-692.76779201,0.00024262,2]
[344234087,1733314239724,-692.76779201,0.00024262,2]
[344234089,1733314239735,-692.76779201,0.00024262,2]
[344234091,1733314239744,-692.76779201,0.00024262,2]
[344234093,1733314239755,-182.342812,0.00024836,2]
[344234095,1733314239764,-14494.98299453,0.00025,2]
[344234097,1733314239774,-116869.0,0.00025,2]
[344234099,1733314239784,-1205.17909633,0.0002565,2]
[344234101,1733314239794,-166.17,0.00025656,10]
[344234103,1733314239803,-823.0,0.00025712,2]
[344234105,1733314239812,-1500.0,0.00025822,2]
[344234107,1733314239821,-1205.17909633,0.000264,2]
[344234109,1733314239830,-329.20595523,0.00026767,2]
[344234111,1733314239839,-568.0,0.00027,2]
[344234113,1733314239851,-160.0,0.00027,2]
[344234115,1733314239859,-837.96756919,0.0002712,2]
[344234117,1733314239869,-1205.17909633,0.0002715,2]
[344234119,1733314239879,-500.0,0.00027397,2]
[344234121,1733314239891,-10118.80004338,0.00027468,2]
[344234123,1733314239900,-568.0,0.00027671,2]
[344234125,1733314239910,-160.0,0.00027671,2]
[344234127,1733314239919,-155.27380596,0.00027678,2]
[344234129,1733314239928,-10118.80004338,0.00027762,2]
[344234131,1733314239938,-3006.47795113,0.000279,2]
[344234133,1733314239947,-1205.17909633,0.000279,2]
[344234135,1733314239957,-2581.2710296,0.000279,2]
[344234137,1733314239967,-506.18118143,0.00027973,5]
[344234139,1733314239976,-501.56826379,0.00027973,5]
[344234141,1733314239986,-500.58436627,0.00027973,5]
[344234143,1733314239995,-262.23162947,0.00027973,5]
[344234145,1733314240005,-500.0,0.00027973,5]
[344234147,1733314240013,-500.0,0.00027973,5]
[344234149,1733314240023,-322.98738339,0.00027973,5]
[344234151,1733314240031,-500.49046582,0.00027973,5]
[344234153,1733314240041,-500.0,0.00027973,5]
[344234155,1733314240050,-213.2007628,0.00027973,30]
[344234157,1733314240060,-293.7527107,0.00027973,30]
[344234159,1733314240070,-150.01,0.00027999,2]
[344234161,1733314240078,-5911.50937057,0.00027999,2]
[344234163,1733314240088,-285.95673694,0.00028,2]
[344234165,1733314240099,-701436.41846536,0.00028,5]
[344234167,1733314240113,-1309.1871306,0.00028,5]
[344234492,1733314246637,-285.24105211,0.00027,2]
[344237007,1733314286519,1169.27083333,0.0002,2]
[344237019,1733314659131,1169.27083333,0.0002,2]
[344237022,1733314802771,166.541067,0.00013973,2]
[344237028,1733315010088,1102.84799818,0.0002,2]
[344237030,1733315030401,1169.27083333,0.0002,2]
[344237031,1733315046076,-1354.6,0.00028,30]
[344237033,1733315105385,2449.1314262,0.0002,2]
[344237034,1733315113479,358.32148649,0.0002,2]
[344237041,1733315290675,2657.28782569,0.0002,2]
[344237042,1733315312002,1867.61522715,0.000176,2]
[344237043,1733315313741,1890.4424693,0.0002,2]
[344237110,1733315432057,-300.0,0.00019162,2]
[344237112,1733315432067,-300.0,0.00019162,2]
[344237114,1733315432081,-16996.6763298,0.00019163,2]
[344237116,1733315432091,-5480.2106287,0.00019709,2]
[344237118,1733315432100,-1326.936362,0.00019826,2]
[344237120,1733315432110,-169.64346761,0.000199,2]
[344237122,1733315432120,-556.70442225,0.000199,2]
[344237125,1733315432130,-309.37954733,0.00019973,2]
[344237128,1733315432140,-285.95673696,0.0001999,2]
[344237131,1733315432149,-16274.58233635,0.0001999,2]
[344237134,1733315432162,-10173.02836283,0.0001999,2]
[344237137,1733315432174,-591.15673215,0.0001999,2]
[344237140,1733315432186,-218266.12452035,0.0001999,2]
[344237142,1733315432196,-1426.63872843,0.0002,2]
[344237144,1733315432206,-1169.27083333,0.0002,2]
[344237146,1733315432216,-152.0,0.00020297,2]
[344237149,1733315432226,-52827.66335891,0.00020377,2]
[344237152,1733315432236,-2104.572896,0.00020853,2]
[344237155,1733315432246,-2192.519532,0.00020853,2]
[344237158,1733315432255,-1581.670179,0.00020853,2]
[344237160,1733315432265,-420.0,0.00020883,2]
[344237162,1733315432279,-420.0,0.00021078,2]
[344237166,1733315432293,-168.554276,0.00021555,2]
[344237168,1733315432304,-24900.0,0.0002166,2]
[344237171,1733315432314,-653.8843688,0.0002174,2]
[344237174,1733315432325,-418.1679079,0.00021864,2]
[344237178,1733315432335,-3215.1608745,0.00021934,2]
[344237181,1733315432345,-25697.23260801,0.00022,2]
[344237183,1733315432355,-172.39900792,0.00022645,2]
[344237184,1733315432365,-182.29,0.00022735,2]
[344237187,1733315432374,-587.0,0.00022759,2]
[344237189,1733315432385,-587.0,0.00023186,2]
[344237191,1733315432394,-166.512861,0.00023249,2]
[344237193,1733315432405,-195.605574,0.00023562,2]
[344237195,1733315432415,-402.2449508,0.000236,2]
[344237197,1733315432425,-2531.09766597,0.00024,2]
[344237199,1733315432434,-823.0,0.00024803,2]
[344237201,1733315432444,-169.6434676,0.000249,2]
[344237203,1733315432453,-2323.14392664,0.000249,2]
[344237205,1733315432463,-161.49333786,0.00024973,2]
[344237207,1733315432472,-500.0,0.00024973,2]
[344237209,1733315432482,-500.0,0.00024993,2]
[344237211,1733315432492,-500.0,0.00024993,2]
[344237213,1733315432502,-500.0,0.00024993,2]
[344237215,1733315432512,-500.0,0.00024993,2]
[344237217,1733315432522,-500.0,0.00024993,2]
[344237219,1733315432536,-500.0,0.00024993,2]
[344237221,1733315432546,-500.0,0.00024993,2]
[344237223,1733315432555,-500.0,0.00024993,2]
[344237225,1733315432565,-500.0,0.00024993,2]
[344237227,1733315432575,-964.19363398,0.00024993,2]
[344237229,1733315432584,-500.0,0.00024993,2]
[344237231,1733315432594,-964.19363398,0.00024993,2]
[344237233,1733315432603,-186.36198963,0.00024993,2]
[344237235,1733315432613,-500.0,0.00024993,2]
[344237237,1733315432623,-500.0,0.00024993,2]
[344237239,1733315432633,-500.0,0.00024993,2]
[344237241,1733315432643,-964.19363398,0.00024993,2]
[344237243,1733315432652,-500.0,0.00024993,2]
[344237245,1733315432662,-500.0,0.00024993,2]
[344237247,1733315432672,-300.0,0.00024993,2]
[344237249,1733315432681,-964.19363398,0.00024993,2]
[344237251,1733315432691,-632.68960705,0.00024993,2]
[344237253,1733315432700,-500.0,0.00024993,2]
[344237255,1733315432708,-233.22503779,0.00024993,2]
[344237257,1733315432717,-964.19363398,0.00024993,2]
[344237270,1733315432830,-500.0,0.00024993,2]
[344237272,1733315432840,-500.0,0.00024993,2]
[344237274,1733315432849,-964.19363398,0.00024993,2]
[344237276,1733315432859,-401.95099764,0.00024993,2]
[344237278,1733315432868,-964.19363398,0.00024993,2]
[344237280,1733315432877,-500.0,0.00024993,2]
[344237283,1733315432888,-500.0,0.00024993,2]
[344237285,1733315432897,-964.19363398,0.00024993,2]
[344237287,1733315432906,-500.0,0.00024993,2]
[344237289,1733315432915,-964.19363398,0.00024993,2]
[344237291,1733315432925,-500.0,0.00024993,2]
[344237292,1733315432935,-964.19363398,0.00024993,2]
[344237295,1733315432946,-500.0,0.00024993,2]
[344237297,1733315432955,-964.19363398,0.00024993,2]
[344237299,1733315432965,-964.19363398,0.00024993,2]
[344237301,1733315432974,-500.0,0.00024993,2]
[344237303,1733315432984,-964.19363398,0.00024993,2]
[344237305,1733315432994,-500.0,0.00024993,2]
[344237307,1733315433004,-964.19363398,0.00024993,2]
[344237308,1733315433013,-500.0,0.00024993,2]
[344237311,1733315433024,-964.19363398,0.00024993,2]
[344237313,1733315433043,-964.19363398,0.00024993,2]
[344237315,1733315433054,-500.0,0.00024993,2]
[344237317,1733315433064,-964.19363398,0.00024993,2]
[344237319,1733315433074,-964.19363398,0.00024993,2]
[344237321,1733315433085,-964.19363398,0.00024993,2]
[344237323,1733315433097,-500.0,0.00024993,2]
[344237325,1733315433107,-964.19363398,0.00024993,2]
[344237327,1733315433119,-500.0,0.00024993,2]
[344237329,1733315433130,-964.19363398,0.00024993,2]
[344237331,1733315433140,-964.19363398,0.00024993,2]
[344237333,1733315433149,-964.19363398,0.00024993,2]
[344237335,1733315433161,-964.19363398,0.00024993,2]
[344237336,1733315433171,-964.19363398,0.00024993,2]
[344237337,1733315433181,-964.19363398,0.00024993,2]
[344237338,1733315433191,-964.19363398,0.00024993,2]
[344237339,1733315433201,-964.19363398,0.00024993,2]
[344237340,1733315433211,-964.19363398,0.00024993,2]
[344237341,1733315433221,-964.19363398,0.00024993,2]
[344237342,1733315433230,-964.19363398,0.00024993,2]
[344237343,1733315433240,-964.19363398,0.00024993,2]
[344237344,1733315433249,-964.19363398,0.00024993,2]
[344237345,1733315433261,-964.19363398,0.00024993,2]
[344237346,1733315433271,-964.19363398,0.00024993,2]
[344237347,1733315433287,-964.19363398,0.00024993,2]
[344237348,1733315433297,-964.19363398,0.00024993,2]
[344237349,1733315433308,-964.19363398,0.00024993,2]
[344237350,1733315433317,-964.19363398,0.00024993,2]
[344237351,1733315433326,-964.19363398,0.00024993,2]
[344237352,1733315433336,-964.19363398,0.00024993,2]
[344237353,1733315433345,-964.19363398,0.00024993,2]
[344237354,1733315433355,-964.19363398,0.00024993,2]
[344237355,1733315433364,-964.19363398,0.00024993,2]
[344237356,1733315433373,-964.19363398,0.00024993,2]
[344237357,1733315433382,-964.19363398,0.00024993,2]
[344237358,1733315433402,-952.43517503,0.00024993,2]
[344237359,1733315433413,-952.43517503,0.00024993,2]
[344237360,1733315433423,-952.43517503,0.00024993,2]
[344237361,1733315433433,-952.43517503,0.00024993,2]
[344237362,1733315433443,-952.43517503,0.00024993,2]
[344237363,1733315433453,-952.43517503,0.00024993,2]
[344237364,1733315433463,-952.43517503,0.00024993,2]
[344237365,1733315433472,-952.43517503,0.00024993,2]
[344237366,1733315433482,-952.43517503,0.00024993,2]
[344237367,1733315433492,-952.43517503,0.00024993,2]
[344237368,1733315433501,-952.43517503,0.00024993,2]
[344237369,1733315433511,-952.43517503,0.00024993,2]
[344237370,1733315433521,-952.43517503,0.00024993,2]
[344237371,1733315433538,-952.43517503,0.00024993,2]
[344237372,1733315433548,-348.076623,0.00024993,2]
[344237373,1733315433558,-952.43517503,0.00024993,2]
[344237374,1733315433568,-952.43517503,0.00024993,2]
[344237375,1733315433578,-952.43517503,0.00024993,2]
[344237376,1733315433588,-952.43517503,0.00024993,2]
[344237377,1733315433598,-952.43517503,0.00024993,2]
[344237378,1733315433608,-952.43517503,0.00024993,2]
[344237379,1733315433618,-952.43517503,0.00024993,2]
[344237380,1733315433627,-952.43517503,0.00024993,2]
[344237381,1733315433637,-952.43517503,0.00024993,2]
[344237382,1733315433647,-952.43517503,0.00024993,2]
[344237383,1733315433656,-952.43517503,0.00024993,2]
[344237384,1733315433666,-952.43517503,0.00024993,2]
[344237385,1733315433675,-952.43517503,0.00024993,2]
[344237386,1733315433684,-952.43517503,0.00024993,2]
[344237387,1733315433694,-952.43517503,0.00024993,2]
[344237388,1733315433704,-952.43517503,0.00024993,2]
[344237389,1733315433713,-952.43517503,0.00024993,2]
[344237390,1733315433722,-952.43517503,0.00024993,2]
[344237391,1733315433732,-952.43517503,0.00024993,2]
[344237392,1733315433741,-952.43517503,0.00024993,2]
[344237393,1733315433751,-981.83132242,0.00024993,2]
[344237394,1733315433762,-981.83132242,0.00024993,2]
[344237395,1733315433772,-981.83132242,0.00024993,2]
[344237397,1733315433789,-981.83132242,0.00024993,2]
[344237399,1733315433799,-981.83132242,0.00024993,2]
[344237401,1733315433809,-981.83132242,0.00024993,2]
[344237403,1733315433819,-981.83132242,0.00024993,2]
[344237405,1733315433829,-981.83132242,0.00024993,2]
[344237407,1733315433838,-981.83132242,0.00024993,2]
[344237409,1733315433847,-77974.88028974,0.00025,2]
[344237411,1733315433857,-32335.73956584,0.00025,7]
[344237428,1733315434001,-72265.88146603,0.00025,7]
[344237430,1733315434012,-393.15366656,0.00025,7]
[344237432,1733315434024,-288.74709373,0.00025,7]
[344237799,1733315437869,-500.0,0.00019989,2]
[344237801,1733315437878,-273.37717753,0.00019989,2]
[344237803,1733315437888,-235.05312552,0.00019989,2]
[344237805,1733315437898,-169.19443798,0.00019989,2]
[344237807,1733315437908,-181.43881485,0.00019989,2]
[344237809,1733315437917,-500.0,0.00019989,2]
[344237811,1733315437926,-8968.93441572,0.00025,7]
[344237814,1733315437938,-3980.5235868,0.00025,7]
[344237816,1733315437950,-39826.51636875,0.00025,7]
[344237818,1733315437961,-1402.61999892,0.00025,7]
[344237820,1733315437972,-43047.80238922,0.00025,7]
[344237822,1733315437982,-412509.56486792,0.00025,2]
[344237824,1733315437991,-166.05135403,0.00025,2]
[344237826,1733315438000,-57141.92416512,0.00025,2]
[344237828,1733315438010,-204.11264877,0.00025,2]
[344237830,1733315438019,-9174.4827813,0.00025,2]
[344237832,1733315438028,-69677.0,0.00025,2]
[344237834,1733315438039,-1627.42,0.00025,14]
[344237837,1733315438048,-107888.060259,0.0002509,2]
[344237839,1733315438059,-3807.53554002,0.0002509,2]
[344237841,1733315438070,-1379.40402007,0.0002509,2]
[344237979,1733315439997,-9605.68809256,0.0002509,2]
[344238298,1733315443234,-5951.59799326,0.0002509,2]
[344238300,1733315443245,-9943.99997192,0.0002509,2]
[344238335,1733315443524,-4083.03236791,0.0002509,2]
[344238338,1733315443533,-900.0,0.00025469,3]
[344238341,1733315443544,-823.0,0.00025505,2]
[344238343,1733315443556,-505.40367801,0.00025521,2]
[344238346,1733315443565,-2323.14392663,0.00025603,2]
[344238349,1733315443575,-166.17,0.00025677,11]
[344238351,1733315443584,-511.63531746,0.00026,2]
[344238354,1733315443593,-2526.68160509,0.00026,30]
[344238356,1733315443605,-3788.34048762,0.00026,30]
[344238358,1733315443615,-10598.08989094,0.00026,3]
[344238360,1733315443624,-16261.42427165,0.00026,2]
[344238362,1733315443634,-155.01944334,0.00026035,2]
[344238365,1733315443643,-151.0,0.000262,12]
[344238368,1733315443656,-2323.14392663,0.00026306,2]
[344238371,1733315443666,-151.0,0.000265,20]
[344238375,1733315443675,-1145.61399143,0.0002661,30]
[344238379,1733315443685,-151.0,0.000268,11]
[344238382,1733315443694,-410.0,0.00027,2]
[344238384,1733315443704,-160.0,0.00027,2]
[344238387,1733315443713,-2323.14392663,0.00027009,2]
[344238390,1733315443723,-161.8086746,0.00027031,2]
[344238394,1733315443735,-990.1913254,0.00027031,2]
[344238397,1733315443744,-195.605574,0.00027049,2]
[344238400,1733315443753,-151.0,0.000271,13]
[344238403,1733315443762,-153.8195847,0.00027205,2]
[344238405,1733315443771,-213.2007628,0.00027205,2]
[344238408,1733315443780,-258.2031213,0.00027205,2]
[344238411,1733315443789,-153.0,0.00027205,2]
[344238413,1733315443802,-213.2007628,0.00027205,2]
[344238414,1733315443811,-153.0,0.00027205,2]
[344238415,1733315443820,-153.0,0.00027205,2]
[344238416,1733315443829,-153.0,0.00027205,2]
[344238417,1733315443838,-213.2007628,0.00027205,2]
[344238418,1733315443847,-213.2007628,0.00027205,2]
[344238419,1733315443856,-305.421966,0.00027205,2]
[344238420,1733315443866,-212.4083043,0.00027205,2]
[344238421,1733315443875,-305.421966,0.00027205,2]
[344238422,1733315443884,-1338.21572682,0.000273,14]
[344238423,1733315443898,-289.20427318,0.000273,14]
[344238424,1733315443907,-155.00097217,0.00027336,2]
[344238425,1733315443916,-500.0,0.00027397,2]
[344238426,1733315443926,-151.0,0.000274,19]
[344238427,1733315443935,-151.0,0.00027597,5]
[344238428,1733315443944,-410.0,0.00027671,2]
[344238429,1733315443953,-160.0,0.00027671,2]
[344238430,1733315443962,-151.0,0.000277,18]
[344238431,1733315443971,-2323.14392663,0.00027712,2]
[344238432,1733315443979,-151.0,0.00027961,5]
[344238433,1733315443988,-500.0,0.00027973,5]
[344238434,1733315443999,-266.60055344,0.00027973,2]
[344238435,1733315444008,-500.0,0.00027973,5]
[344238436,1733315444017,-500.0,0.00027973,5]
[344238437,1733315444027,-263.94623079,0.00027973,5]
[344238438,1733315444036,-17700.0,0.0002798,5]
[344238439,1733315444045,-1171.28857014,0.0002799,7]
[344238440,1733315444058,-226.10816119,0.00027999,2]
[344238441,1733315444067,-3888.22910563,0.00027999,2]
[344238465,1733315446030,-308.0,0.00027,2]
[344238467,1733315446040,-4825.49384,0.00027999,2]
[344238471,1733315446096,-3531.44589621,0.00027999,2]
[344238473,1733315446107,-15668.55410379,0.00028,5]
[344238475,1733315446120,-19207.6,0.00028,5]
[344238477,1733315446134,-3956.5983,0.00028,5]
[344241366,1733315477909,166.608667,0.00013973,2]
[344248290,1733316111375,166.699416,0.00013973,2]
[344248326,1733316559116,-218.4540567,0.000199,2]
[344248415,1733316638362,-1457.75969152,0.000199,2]
[344248416,1733316638372,-1169.27083333,0.0002,2]
[344248417,1733316638381,-1169.27083333,0.0002,2]
[344248418,1733316638390,-250.0,0.00023717,2]
[344248419,1733316638399,-1052.286448,0.00024115,2]
[344248420,1733316638408,-709.5845803,0.00024321,2]
[344248421,1733316638419,-1219.7977905,0.00024386,2]
[344248422,1733316638428,-300.0,0.00024483,2]
[344248423,1733316638438,-300.0,0.00024483,2]
[344248424,1733316638448,-14672.8835005,0.00024484,2]
[344248425,1733316638461,-204.4501861,0.00024559,2]
[344248426,1733316638471,-250.0,0.0002487,2]
[344248427,1733316638480,-166.512861,0.00024904,2]
[344248428,1733316638490,-645.22,0.00025,4]
[344248429,1733316638502,-500.0,0.00025,4]
[344248430,1733316638511,-500.0,0.00025,4]
[344248431,1733316638520,-186.029196,0.00025272,2]
[344248432,1733316638531,-1003.0,0.00026,31]
[344248433,1733316638541,-171.0,0.000261,2]
[344248434,1733316638551,-14072.93407942,0.00026116,2]
[344248435,1733316638566,-10827.06592058,0.00026116,2]
[344248436,1733316638577,-166.17,0.00026294,13]
[344248437,1733316638587,-420.0,0.00026537,2]
[344248438,1733316638596,-998.50224663,0.00026757,2]
[344248439,1733316638606,-420.0,0.00026931,2]
[344248440,1733316638615,-173.145541,0.00026939,2]
[344248441,1733316638624,-162.9,0.00026989,5]
[344248442,1733316638635,-269.0,0.00027,2]
[344248443,1733316638644,-160.0,0.00027,2]
[344248444,1733316638653,-186.029196,0.00027143,2]
[344248445,1733316638663,-162.9,0.00027376,5]
[344248446,1733316638672,-500.0,0.00027397,2]
[344248447,1733316638681,-269.0,0.00027671,2]
[344248448,1733316638690,-162.9,0.00027762,5]
[344248449,1733316638700,-500.0,0.00027899,2]
[344248450,1733316638709,-500.0,0.00027899,2]
[344248451,1733316638718,-500.0,0.00027899,2]
[344248452,1733316638728,-544.66122196,0.00027899,2]
[344248453,1733316638737,-500.0,0.00027899,2]
[344248454,1733316638747,-500.0,0.00027899,2]
[344248455,1733316638756,-500.0,0.00027899,2]
[344248456,1733316638765,-200.0,0.00027899,2]
[344248457,1733316638775,-500.0,0.00027899,2]
[344248458,1733316638784,-66.15787383,0.00027899,2]
[344248470,1733316639953,-433.84212617,0.00027899,2]
[344248471,1733316639962,-500.0,0.00027899,2]
[344248472,1733316639972,-500.0,0.00027899,2]
[344248473,1733316639981,-500.0,0.00027899,2]
[344248474,1733316639990,-500.0,0.00027899,2]
[344248475,1733316639999,-500.0,0.00027899,2]
[344248476,1733316640009,-500.0,0.00027899,2]
[344248477,1733316640018,-500.0,0.00027899,2]
[344248478,1733316640028,-500.0,0.00027899,2]
[344248479,1733316640037,-500.0,0.00027899,2]
[344248480,1733316640046,-500.0,0.00027899,2]
[344248481,1733316640056,-262.46054405,0.00027899,2]
[344248482,1733316640067,-500.0,0.00027899,2]
[344248483,1733316640077,-500.0,0.00027899,2]
[344248484,1733316640086,-6666.0,0.000279,2]
[344248485,1733316640096,-29773.25955697,0.000279,3]
[344248486,1733316640106,-1169.27083333,0.000279,3]
[344248488,1733316640116,-1169.27083333,0.000279,3]
[344248490,1733316640125,-1169.27083333,0.000279,3]
[344248492,1733316640135,-1169.27083333,0.000279,3]
[344248493,1733316640146,-1169.27083333,0.000279,3]
[344248495,1733316640156,-1161.57196336,0.000279,2]
[344248497,1733316640165,-501.15609388,0.00027973,5]
[344248499,1733316640174,-501.17300198,0.00027973,5]
[344248500,1733316640183,-178.41201349,0.00027973,5]
[344248501,1733316640193,-327.26320322,0.00027973,2]
[344248502,1733316640202,-500.0,0.00027973,5]
[344248503,1733316640211,-500.0,0.00027973,5]
[344248504,1733316640221,-629.43857148,0.00027973,5]
[344248505,1733316640231,-500.0,0.00027973,5]